Cogmind - Beta 15 @@@ ROGUE MODE // 2025.10.12 @ 14:14:38 Player: weedlord420 Result: Self-destructed Performance ------------- Evolutions (4) 2000 Regions Visited (11) 2200 Robots Destroyed (166) 830 Value Destroyed (7895) 7895 Prototype IDs (7) 140 Alien Tech Used (0) 0 Bonus (5973) 5973 TOTAL SCORE: 19038 Bonus ------- High Alert Combat Kills 1457 Follower Combat Kills 1975 Entered Garrisons 600 Used RIF Installer 2000 Friendly Fire -59 Cogmind --------- Core Integrity 483/850 Matter 72/300 Energy 99/100 System Corruption 5% Temperature Cool (0) Movement Core (50) Location -6/Factory Parts ------- > --- POWER (1) -------- (None) > --- PROPULSION (4) --- (None) > --- UTILITY (8) ------ Core Analyzer Hacking Suite System Shield System Shield System Shield Relay Coupler [NC] (29) Relay Coupler [Grunt] (35) Relay Coupler [Sentry] (12) > --- WEAPON (2) ------- Remote Datajack > --- INVENTORY (5) ---- Cloaking Device Relay Coupler [Specialist] (32) Relay Coupler [Behemoth] (23) Greatsword Peak State ------------ > --- POWER ------------ Fission Core > --- PROPULSION ------- Armored Medium Treads Armored Medium Treads Armored Medium Treads Flexi-carbon Leg > --- UTILITY ---------- Advanced Cooling System Huge Storage Unit Core Analyzer Hardened Medium Armor Plating Improved Light Armor Plating Hardlight Generator Hacking Suite Relay Coupler [Sentry] > --- WEAPON ----------- Heavy Mass Driver > --- INVENTORY -------- Reinforced Deuterium Engine Reinforced Deuterium Engine Cold Fusion Reactor Advanced Transmission Jammer Improved Light Armor Plating Thermal Shield System Shield Authchip [R/NC] Authchip [R/Combat] Relay Coupler [NC] Relay Coupler [Grunt] Relay Coupler [Specialist] Relay Coupler [Hunter] Relay Coupler [Behemoth] Relay Coupler [Behemoth] Improved Dynamic Insulation System Thermic Laser Thermic Laser Bore Cannon Missile Launcher Remote Datajack Plasma Cutter Power Sword [Rating: 77] Favorites ----------- Power Reinforced Deuterium Engine Engine Reinforced Deuterium Engine Power Core Nuclear Core Reactor Cold Fusion Reactor Propulsion Armored Wheel Treads Armored Medium Treads Leg Flexi-carbon Leg Wheel Armored Wheel Utility Huge Storage Unit Device Cooling System Storage Huge Storage Unit Processor Core Analyzer Hackware Hacking Suite Protection Hardened Medium Armor Plating Weapon Advanced Beam Rifle Energy Gun Advanced Beam Rifle Energy Cannon Heavy Particle Cannon Ballistic Gun Assault Rifle Ballistic Cannon Bore Cannon Launcher Missile Launcher Special Weapon Remote Datajack Slashing Weapon Power Sword Special Melee Weapon Improved Datajack Build | -11 -10 -10 -9 -9 -8 -8 -7 -7 -7 -7 -6 ------- Run | Yrd Mat Min Mat Sto Mat Gar Fac Gar Fac Gar Fac Slots Evolved 8 | . . . 2 . 2 . 2 . . . 2 Power . | . . . . . . . . . . . . Propulsion 2 | . . . . . . . . . . . 2 Utility 6 | . . . 2 . 2 . 2 . . . . Weapon . | . . . . . . . . . . . . Parts Attached 126 | 5 3 4 13 18 12 11 1 20 7 8 24 Power 11 | 1 . . 1 3 1 1 . 2 . 1 1 Engine 8 | 1 . . 1 2 . 1 . 2 . 1 . Core 2 | . . . . . 1 . . . . . 1 Reactor 1 | . . . . 1 . . . . . . . Propulsion 32 | 2 . 1 . 12 4 3 . 3 1 2 4 Treads 14 | . . . . 7 1 2 . 2 . 1 1 Leg 1 | . . . . . . . . . . . 1 Wheel 17 | 2 . 1 . 5 3 1 . 1 1 1 2 Hover . | . . . . . . . . . . . . Flight . | . . . . . . . . . . . . Utility 55 | . 3 . 5 2 4 4 . 13 4 4 16 Device 12 | . . . 2 1 . . . 4 . 2 3 Storage 3 | . 3 . . . . . . . . . . Processor 4 | . . . 2 1 . . . 1 . . . Hackware 22 | . . . . . 1 4 . 6 3 1 7 Protection 14 | . . . 1 . 3 . . 2 1 1 6 Artifact . | . . . . . . . . . . . . Weapon 28 | 2 . 3 7 1 3 3 1 2 2 1 3 Energy Gun 9 | 1 . . 3 . 1 1 . . . 1 2 Energy Cannon 5 | . . 2 1 1 . 1 . . . . . Ballistic Gun 4 | 1 . . 3 . . . . . . . . Ballistic Cannon 2 | . . . . . . . . 1 1 . . Launcher 4 | . . 1 . . 2 . . . . . 1 Special Weapon 2 | . . . . . . . . 1 1 . . Impact Weapon . | . . . . . . . . . . . . Slashing Weapon 1 | . . . . . . . 1 . . . . Piercing Weapon . | . . . . . . . . . . . . Special Melee Weapon 1 | . . . . . . 1 . . . . . Unidentified Prototypes 6 | . . . 3 2 . . . . . . 1 Parts Lost 45 | . . 1 3 3 4 1 . 8 . 5 20 Power 4 | . . . 1 . . . . 1 . . 2 Propulsion 15 | . . 1 . 1 2 . . 3 . 2 6 Utility 18 | . . . 1 2 2 . . 4 . 3 6 Weapon 8 | . . . 1 . . 1 . . . . 6 Highest Loss Streak 8 | . . 1 2 2 2 1 . 6 . 2 8 To Critical Strikes . | . . . . . . . . . . . . Average Backups 22 | 3 6 19 21 24 24 24 25 23 23 22 20 Power 1 | . 1 1 1 . 1 1 2 2 2 2 2 Propulsion 4 | 1 2 3 3 5 5 6 6 4 4 2 . Utility 9 | . 2 6 5 8 8 11 12 10 11 11 13 Weapon 5 | . . 8 10 9 7 3 3 4 4 4 2 Tool/Special . | . . . . . . . . . . . . Unused Backups 37 | . . . 1 . 7 5 . 7 2 1 14 Power 1 | . . . . . . . . 1 . . . Propulsion 2 | . . . . . . . . 1 1 . . Utility 25 | . . . . . 3 4 . 4 1 1 12 Weapon 8 | . . . 1 . 4 1 . 1 . . 1 Tool/Special 1 | . . . . . . . . . . . 1 Average Slot Usage (%) 95 | . 83 84 92 99 99 99 84 91 94 97 88 Engine 7 | . 14 14 11 10 4 6 7 6 7 7 3 Core 1 | . . . . . 4 2 . . . . 2 Treads 3 | . . . . 1 1 2 . . . 6 14 Wheel 15 | . 28 27 22 20 16 15 15 14 15 7 5 Device 9 | . . . 13 11 9 8 7 3 . 21 12 Storage 8 | . 13 14 11 11 9 9 7 7 7 7 5 Processor 9 | . . . 10 11 18 11 7 8 7 7 6 Hackware 14 | . . . . . 8 23 23 26 37 12 18 Protection 6 | . . . 3 10 8 1 . 6 7 9 5 Energy Gun 9 | . 13 . 9 22 17 11 7 1 . 6 2 Energy Cannon 1 | . . 22 6 . . 5 . . . . . Special Weapon 1 | . . . . . . . . 2 3 1 3 Slashing Weapon 1 | . . . . . . . 4 5 . 3 2 Peak Build Rating 77 | 5 9 12 24 30 37 36 38 62 56 62 77 Average Rating 39 | 3 6 10 20 25 33 33 37 44 51 58 61 On Entrance 29 | . 5 9 12 24 25 36 36 38 56 49 62 Naked Turns . | . . . . . . . . . . . . Heaviest Build 131 | 8 88 93 95 102 101 101 96 121 121 131 128 Greatest Support 101 | 32 32 26 26 43 32 40 24 28 28 54 101 Greatest Overweight (x) 34 | . 2 3 3 5 5 4 3 5 5 10 34 Average Overweight (x) 4 | . . 3 3 3 3 3 3 3 4 7 4 Largest Inventory Capacity 25 | 5 25 25 25 25 25 25 25 25 25 25 25 Average Capacity 24 | 5 18 25 25 25 25 25 25 25 25 25 22 Most Carried 25 | 5 19 21 25 25 25 25 25 25 25 25 25 Average Carried 22 | 3 7 19 21 24 24 24 25 23 24 23 20 Final Capacity 25 | 5 25 25 25 25 25 25 25 25 25 25 5 Final Carried 25 | 4 19 21 21 25 25 25 25 25 24 25 5 Class Distribution -------------------- 38% | Mutant 31% | Bothacker-Mutant 13% | Scavenger-Mutant 8% | Botlord-Mutant 7% | Hacker-Mutant Dominant Class ---------------- Mutant | -10/Materials Mutant | -10/Mines Mutant | -9/Materials Mutant | -9/Storage Scavenger-Mutant | -8/Materials Hacker-Mutant | -8/Garrison Bothacker-Mutant | -7/Factory Bothacker-Mutant | -7/Garrison Bothacker-Mutant | -7/Factory Mutant | -7/Garrison Bothacker-Mutant | -6/Factory Resources | -11 -10 -10 -9 -9 -8 -8 -7 -7 -7 -7 -6 ----------- Run | Yrd Mat Min Mat Sto Mat Gar Fac Gar Fac Gar Fac Matter Collected 3606 | 250 140 85 164 455 419 295 . 562 179 512 545 Remotely . | . . . . . . . . . . . . Salvage Created 5752 | . 190 33 554 1391 1297 473 . 372 113 399 930 Parts 299 | . 17 9 28 71 83 27 . 14 4 15 31 Haulers Intercepted 10 | . 1 . 2 4 3 . . . . . . Recyclers Shooed 4 | . . . . 1 1 . . . 1 . 1 Parts Field Recycled . | . . . . . . . . . . . . Retrieved Matter . | . . . . . . . . . . . . Parts Self-Destructed . | . . . . . . . . . . . . Prevented . | . . . . . . . . . . . . Kills | -11 -10 -10 -9 -9 -8 -8 -7 -7 -7 -7 -6 ------- Run | Yrd Mat Min Mat Sto Mat Gar Fac Gar Fac Gar Fac Combat Hostiles Destroyed 129 | . 7 6 5 17 27 14 . 7 2 17 27 Melee 8 | . . . . . . . . 5 . . 3 Guns 74 | . 7 . 4 16 27 5 . . . 8 7 Cannons 11 | . . . 1 . . 3 . . 2 1 4 AOE 32 | . . 6 . . . 5 . 2 . 7 12 Classes Destroyed 16 | . 4 . 5 2 2 . . 1 . . 2 Worker 3 | . . . . 2 1 . . . . . . Builder 4 | . 1 . . . 1 . . . . . 2 Hauler 10 | . 1 . 2 4 3 . . . . . . Recycler 6 | . . . 2 3 1 . . . . . . Mechanic 3 | . 1 . . . . . . . . . 2 Operator 3 | . . . . 2 1 . . . . . . Watcher 7 | . . . 1 2 3 . . . 1 . . Swarmer 46 | . 7 6 . 3 11 4 . . . 11 4 Saboteur 1 | . . . . . . . . . . . 1 Grunt 36 | . . . 2 4 4 3 . 4 2 2 15 Brawler 4 | . . . 1 . . 2 . . . . 1 Duelist 4 | . . . . . . . . . . . 4 Sentry 26 | . . . 2 10 6 4 . 2 . 2 . Specialist 2 | . . . . . 2 . . . . . . Hunter 6 | . . . . . 4 1 . 1 . . . Programmer 5 | . . . . . . . . 1 . 2 2 Best Kill Streak 9 | . 5 3 3 4 8 4 . 2 2 5 9 Combat Bots Only 8 | . 3 3 3 4 8 4 . 2 2 5 8 Max Kills in Single Turn 3 | . 1 3 1 2 2 3 . 2 1 2 3 Gunslinging . | . . . . . . . . . . . . Exploded 3 | . . 3 . . . 3 . 2 . 2 3 Melee 1 | . . . . . . . . 1 . . 1 Uniques/NPCs Destroyed . | . . . . . . . . . . . . Combat | -11 -10 -10 -9 -9 -8 -8 -7 -7 -7 -7 -6 -------- Run | Yrd Mat Min Mat Sto Mat Gar Fac Gar Fac Gar Fac Hostile Shots Fired 863 | . 30 10 35 47 106 52 . 126 32 182 243 Missed 256 | . 10 1 11 9 31 15 . 42 11 57 69 Hits 607 | . 20 9 24 38 75 37 . 84 21 125 174 Melee 10 | . . . 1 . . . . . . . 9 Projectile 597 | . 20 9 23 38 75 37 . 84 21 125 165 AOE 1 | . . . . . 1 . . . . . . Critical Strikes 23 | . . 1 1 4 . 1 . 3 . 3 10 Damage Taken 8419 | . 156 104 327 548 1042 563 . 985 301 1018 3375 Core 1194 | . 64 15 62 80 140 136 . 249 61 20 367 Absorbed by Shields 679 | . . . . . . 12 . 57 . 266 344 Ignored by Resistances 293 | . . . . 41 24 . . . . . 228 Regen/Repaired (Parts) 79 | . . . . 79 . . . . . . . Core Remaining (%) 66 | 100 . 68 . 64 . 49 . . . 52 . Volleys Fired 430 | . 30 4 28 62 84 36 . 41 22 51 72 Largest 2 | . 2 2 2 2 2 2 . 2 1 2 2 Hottest 170 | . 60 112 122 122 122 136 . 160 65 165 170 Shots Fired 693 | . 50 5 55 124 161 67 . 46 22 74 89 Gun 506 | . 50 . 37 124 156 41 . 9 . 46 43 Cannon 98 | . . 2 18 . . 17 . 11 14 12 24 Launcher 39 | . . 3 . . 5 9 . 3 . 7 12 Special 50 | . . . . . . . . 23 8 9 10 Kinetic 105 | . 30 . 19 . . . . 6 14 12 24 Thermal 485 | . 20 . 24 124 156 58 . 14 . 46 43 Explosive 39 | . . 3 . . 5 9 . 3 . 7 12 Electromagnetic 14 | . . 2 12 . . . . . . . . Robot Hit Streak 19 | . 6 1 9 15 14 19 . 12 5 8 8 Robot Miss Streak 7 | . 5 1 3 4 4 1 . 1 5 3 7 Penetration Max . | . . . . . . . . . . . . Secondary Targets 7 | . 1 . . 1 3 . . . . 1 1 Max Gunslinging Chain 1 | . 1 . . 1 1 . . . . 1 1 Shots Hit Robots 463 | . 24 1 33 71 99 47 . 51 11 47 79 Core Hits 269 | . 12 5 12 32 51 16 . 16 3 39 83 Critical Kills 3 | . . . . . . . . . 1 . 2 Critical Parts Destroyed 6 | . . . . . . . . . 1 . 5 Critical Strikes 44 | . . . . 11 12 3 . 3 2 . 13 Burn 32 | . . . . 11 12 3 . 2 . . 4 Destroy 9 | . . . . . . . . . 2 . 7 Blast 1 | . . . . . . . . 1 . . . Sever 2 | . . . . . . . . . . . 2 Melee Attacks 82 | . . . . . . 7 3 48 . 8 16 Impact . | . . . . . . . . . . . . Slashing 65 | . . . . . . . 3 38 . 8 16 Piercing . | . . . . . . . . . . . . Sneak Attacks 6 | . . . . . . 3 . 3 . . . Combat Hostiles 4 | . . . . . . 3 . 1 . . . Follow-up Attacks . | . . . . . . . . . . . . Damage Inflicted 13551 | . 290 255 650 1460 2118 1335 . 1164 250 1865 4164 Guns 6335 | . 290 . 373 1460 2040 536 . 126 . 776 734 Cannons 2062 | . . 20 277 . . 275 . 165 250 413 662 Explosions 4010 | . . 235 . . 78 524 . 215 . 676 2282 Melee 1142 | . . . . . . . . 658 . . 484 Ramming 2 | . . . . . . . . . . . 2 Kinetic 1770 | . 172 . 208 . . . . 65 250 413 662 Thermal 6593 | . 118 . 227 1460 2040 811 . 226 . 776 935 Explosive 3809 | . . 235 . . 78 524 . 215 . 676 2081 Electromagnetic 235 | . . 20 215 . . . . . . . . Impact . | . . . . . . . . . . . . Slashing 1142 | . . . . . . . . 658 . . 484 Piercing . | . . . . . . . . . . . . Highest Corruption 5 | . . . 3 4 . . . 1 . 1 5 Average Corruption 2 | . . . 3 3 . . . 1 . 1 3 Corruption Purged 1 | . . . . . . . . 1 . . . Corruption Blocked . | . . . . . . . . . . . . Effects 67 | . . . 10 32 . . . . . 12 13 Message Errors 16 | . . . 1 8 . . . . . 4 3 Matter Fused 17 | . . . 5 6 . . . . . 2 4 Heat Flow Errors 6 | . . . 1 4 . . . . . 1 . Energy Discharges 6 | . . . 1 3 . . . . . 2 . Parts Fused 3 | . . . . 2 . . . . . 1 . Data Loss (minor) 10 | . . . 1 3 . . . . . 2 4 Data Loss (major) 2 | . . . . 1 . . . . . . 1 Misfires 4 | . . . 1 3 . . . . . . . Alerts 2 | . . . . 2 . . . . . . . Weapon Failures 1 | . . . . . . . . . . . 1 Overload Shots . | . . . . . . . . . . . . Overflow Damage 425 | . . 8 14 . . 97 . 18 . 100 188 Projectiles 119 | . . . 14 . . . . 10 . 72 23 Explosions 298 | . . 8 . . . 97 . . . 28 165 Melee 8 | . . . . . . . . 8 . . . Knockbacks 7 | . . . . . . . . . 2 1 4 Impact . | . . . . . . . . . . . . Kinetic 7 | . . . . . . . . . 2 1 4 Secondary . | . . . . . . . . . . . . Self-Inflicted Damage 548 | . . 26 . . . . . . . 33 489 Shots 10 | . . 1 . . . . . . . 1 8 Rammed 1 | . . . . . . . . . . . 1 Targets Rammed 1 | . . . . . . . . . . . 1 Kicked . | . . . . . . . . . . . . Crushed . | . . . . . . . . . . . . Highest Temperature 340 | . 10 51 196 340 83 104 . 72 83 168 303 Average Temperature 60 | . 10 28 38 85 26 24 . 25 27 60 120 Received Heat Transfer 2557 | . . . 114 219 219 168 . 328 63 280 1166 Effects 1 | . . . . 1 . . . . . . . Interference 1 | . . . . 1 . . . . . . . Siege Activations . | . . . . . . . . . . . . Martial Activations . | . . . . . . . . . . . . Shielding Activations . | . . . . . . . . . . . . Robots Disrupted . | . . . . . . . . . . . . Combat Hostiles . | . . . . . . . . . . . . Robots Corrupted . | . . . . . . . . . . . . Combat Hostiles . | . . . . . . . . . . . . Parts Fried 2 | . . . 2 . . . . . . . . Impact Corruptions . | . . . . . . . . . . . . Robots Melted 4 | . . . . 1 . 1 . . . 1 1 Combat Hostiles 4 | . . . . 1 . 1 . . . 1 1 Parts Melted 30 | . . . . 10 12 2 . 1 . 2 3 Heat Transferred 14613 | . 275 . 444 3515 4662 1706 . 698 . 1773 1540 Parts Sabotaged . | . . . . . . . . . . . . Parts Stolen . | . . . . . . . . . . . . Parts Stripped . | . . . . . . . . . . . . Power Chain Reactions . | . . . . . . . . . . . . Alert | -11 -10 -10 -9 -9 -8 -8 -7 -7 -7 -7 -6 ------- Run | Yrd Mat Min Mat Sto Mat Gar Fac Gar Fac Gar Fac Maximum Alert Level 5 | . . . . . 1 3 2 4 4 5 4 Low Security (%) 36 | 100 100 100 100 100 69 3 . . . . . Level 1 8 | . . . . . 30 25 . 8 . . . Level 2 16 | . . . . . . 49 100 38 52 . . Level 3 18 | . . . . . . 21 . 27 45 11 70 Level 4 14 | . . . . . . . . 25 1 49 29 Level 5 6 | . . . . . . . . . . 39 . High Security . | . . . . . . . . . . . . Max Security . | . . . . . . . . . . . . Peak Influence 2052 | . 81 128 60 192 294 905 474 1267 1104 2052 1589 Initial 1077 | . . . 1 . 4 187 474 319 665 745 1077 Average 604 | . 24 56 11 36 136 541 465 783 784 1474 1126 Influence Increases 7639 | . 218 173 198 679 847 728 3 1168 964 1437 1224 Destroy 0b10 Robot/C 3720 | . 140 120 100 340 540 300 . 540 420 640 580 Destroy 0b10 Robot/NC 210 | . 15 . 25 80 50 . . . 20 . 20 Destroy Leader 628 | . 22 20 36 132 162 10 . 20 96 40 90 Allied During Kill 619 | . . . . . . 2 . 113 336 153 15 Successful Hack 125 | . 25 . 6 34 17 10 . . 7 26 . Select Force Hacks 20 | . . . . . . . . . 20 . . Disable Machine 465 | . . . 30 60 15 30 . 45 45 . 240 Anti-Garrison Action 1050 | . . . . . . 350 . 300 . 400 . Destroy Structure 412 | . 1 18 1 3 33 11 3 90 20 103 129 Partial Spotted 15 | . . . . . . . . . . 15 . Lose Combat Pursuer 375 | . 15 15 . 30 30 15 . 60 . 60 150 Influence Decreases 6092 | . 218 168 203 668 570 111 451 358 1166 450 1729 Entered New Map 2578 | . . . 4 . 7 101 431 138 602 320 975 Time Decay 2449 | . 218 168 194 488 523 . 20 . 404 . 434 Lost Part 415 | . . . 5 30 40 10 . 80 . 50 200 Lost Ally 500 | . . . . . . . . 140 160 80 120 Purge Threat 150 | . . . . 150 . . . . . . . Squads Dispatched 26 | . 1 . . . 5 . . . 9 . 11 Investigation 6 | . 1 . . . 1 . . . 3 . 1 Extermination 4 | . . . . . . . . . 2 . 2 Reinforcement 8 | . . . . . 4 . . . 2 . 2 Assault 5 | . . . . . . . . . 1 . 4 Garrison 3 | . . . . . . . . . 1 . 2 Intercept . | . . . . . . . . . . . . Searches Triggered . | . . . . . . . . . . . . Construction Impeded 1 | . . . . . . . . . . . 1 Haulers Reinforced . | . . . . . . . . . . . . Active Scanning Responses . | . . . . . . . . . . . . Cargo Convoy Interrupts . | . . . . . . . . . . . . Stealth | -11 -10 -10 -9 -9 -8 -8 -7 -7 -7 -7 -6 --------- Run | Yrd Mat Min Mat Sto Mat Gar Fac Gar Fac Gar Fac Distress Signals 4 | . 2 . . 1 . . . . 1 . . Communications Jammed . | . . . . . . . . . . . . Distress Signals . | . . . . . . . . . . . . Times Spotted 260 | . 15 11 11 24 37 18 . 35 25 34 50 Peak Tracking Total 11 | . 4 3 3 5 9 3 . 5 4 5 11 Tactical Retreats 20 | . 1 1 . 1 2 1 . 2 . 4 8 Traps | -11 -10 -10 -9 -9 -8 -8 -7 -7 -7 -7 -6 ------- Run | Yrd Mat Min Mat Sto Mat Gar Fac Gar Fac Gar Fac Traps Triggered 22 | . 2 . . 2 5 2 . 5 1 5 . Indirectly . | . . . . . . . . . . . . Trap Hack Attempts . | . . . . . . . . . . . . Triggered . | . . . . . . . . . . . . Disarmed . | . . . . . . . . . . . . Reprogrammed . | . . . . . . . . . . . . Reused . | . . . . . . . . . . . . Traps Extracted . | . . . . . . . . . . . . Installed . | . . . . . . . . . . . . Triggered . | . . . . . . . . . . . . Machines | -11 -10 -10 -9 -9 -8 -8 -7 -7 -7 -7 -6 ---------- Run | Yrd Mat Min Mat Sto Mat Gar Fac Gar Fac Gar Fac Machines Disabled 44 | . . . 2 4 1 7 . 7 3 4 16 Max in Single Turn 5 | . . . 1 1 1 1 . 1 1 1 5 Garrison Access 1 | . . . . . . . . . . . 1 Garrison Relay 13 | . . . . . . 5 . 4 . 4 . Phase Generator 1 | . . . . . . 1 . . . . . Machines Repaired . | . . . . . . . . . . . . Machines Dismantled . | . . . . . . . . . . . . Machines Sabotaged . | . . . . . . . . . . . . Overloaded Fab Kills . | . . . . . . . . . . . . Hacking | -11 -10 -10 -9 -9 -8 -8 -7 -7 -7 -7 -6 --------- Run | Yrd Mat Min Mat Sto Mat Gar Fac Gar Fac Gar Fac Machines Accessed 41 | . 4 . 2 12 6 2 1 2 6 4 2 Terminals 29 | . 4 . 2 10 3 2 . 2 1 4 1 Fabricators 1 | . . . . . . . . . 1 . . Repair Stations 4 | . . . . 1 1 . . . 2 . . Recycling Units 2 | . . . . 1 . . . . 1 . . Scanalyzers 1 | . . . . . 1 . . . . . . Garrison Access 4 | . . . . . 1 . 1 . 1 . 1 Total Hacks 96 | . 10 . 7 33 11 3 2 3 16 7 4 Successful 44 | . 5 . 4 13 5 2 2 2 7 3 1 Failed 52 | . 5 . 3 20 6 1 . 1 9 4 3 Catastrophic 7 | . . . 1 2 2 . . . . . 2 Database Lockouts . | . . . . . . . . . . . . Manual 40 | . 10 . 7 11 5 . . . 4 . 3 Terminals 61 | . 10 . 7 24 5 3 . 3 1 7 1 Fabricators 2 | . . . . . . . . . 2 . . Repair Stations 11 | . . . . 3 1 . . . 7 . . Recycling Units 9 | . . . . 6 . . . . 3 . . Scanalyzers 3 | . . . . . 3 . . . . . . Garrison Access 10 | . . . . . 2 . 2 . 3 . 3 Terminal Hacks 19 | . 3 . 2 7 . 2 . 2 . 3 . Open Door 5 | . . . . 4 . . . . . 1 . Emergency Access Points 2 | . . . . . . 1 . 1 . . . Terminal Index 3 | . 1 . 1 1 . . . . . . . Unreport Threat 1 | . . . . 1 . . . . . . . Locate Traps 3 | . 1 . 1 1 . . . . . . . Registered Components 1 | . 1 . . . . . . . . . . Garrison Registry 3 | . . . . . . 1 . 1 . 1 . Security Stations 1 | . . . . . . . . . . 1 . Fabricator Hacks 1 | . . . . . . . . . 1 . . Build 1 | . . . . . . . . . 1 . . Repair Station Hacks 3 | . . . . 2 . . . . 1 . . Scan Component 2 | . . . . 1 . . . . 1 . . Repair 1 | . . . . 1 . . . . . . . Recycling Unit Hacks 3 | . . . . 1 . . . . 2 . . Retrieve Components 3 | . . . . 1 . . . . 2 . . Scanalyzer 2 | . . . . . 2 . . . . . . Insert Component 1 | . . . . . 1 . . . . . . Analyze 1 | . . . . . 1 . . . . . . Garrison Access Hacks 5 | . . . . . 1 . 2 . 1 . 1 Unlock Access 3 | . . . . . 1 . 1 . 1 . . Coupler Status 2 | . . . . . . . 1 . . . 1 Unauthorized Hacks 11 | . 2 . 2 3 2 . . . 2 . . Terminals 6 | . 2 . 2 1 1 . . . . . . Botnet 2 | . 1 . 1 . . . . . . . . Operators 4 | . 1 . 1 1 1 . . . . . . Fabricators 1 | . . . . . . . . . 1 . . Download 1 | . . . . . . . . . 1 . . Repair Stations . | . . . . . . . . . . . . Recycling Units 2 | . . . . 2 . . . . . . . Reject 1 | . . . . 1 . . . . . . . Mask 1 | . . . . 1 . . . . . . . Scanalyzers . | . . . . . . . . . . . . Garrison Access 2 | . . . . . 1 . . . 1 . . Reprogram 2 | . . . . . 1 . . . 1 . . Data Cores Recovered 1 | . . . . 1 . . . . . . . Used . | . . . . . . . . . . . . Hacking Detections 34 | . 4 . 2 11 5 1 . 1 5 3 2 Full Trace Events 2 | . . . . . . . . . 1 . 1 Feedback Events . | . . . . . . . . . . . . Feedback Blocked . | . . . . . . . . . . . . Robot Schematics Acquired . | . . . . . . . . . . . . Robots Built 3 | . . . . . . . . . 3 . . Authchips 1 | . . . . . . . . . 1 . . Time 67 | . . . . . . . . . 67 . . Total Robot Build Rating 12 | . . . . . . . . . 12 . . Part Schematics Acquired 1 | . . . . . 1 . . . . . . Parts Built . | . . . . . . . . . . . . Authchips . | . . . . . . . . . . . . Time . | . . . . . . . . . . . . Total Part Build Rating . | . . . . . . . . . . . . Parts Repaired 1 | . . . . 1 . . . . . . . Time 32 | . . . . 32 . . . . . . . Parts Recycled . | . . . . . . . . . . . . Recycled Matter . | . . . . . . . . . . . . Retrieved Matter . | . . . . . . . . . . . . Retrieved Components 10 | . . . . 10 . . . . . . . Parts Scanalyzed 1 | . . . . . 1 . . . . . . Part Schematics Acquired 1 | . . . . . 1 . . . . . . Parts Damaged . | . . . . . . . . . . . . Bothacking | -11 -10 -10 -9 -9 -8 -8 -7 -7 -7 -7 -6 ------------ Run | Yrd Mat Min Mat Sto Mat Gar Fac Gar Fac Gar Fac Used RIF Installer 4 | . . . . . . 2 . 1 . 1 . Coupler Efficiency 1 | . . . . . . 1 . . . . . Patrol Navigation 1 | . . . . . . . . 1 . . . Program Shield 1 | . . . . . . . . . . 1 . Robots Hacked 31 | . . . . . . 3 . 13 5 3 7 Non-combat 2 | . . . . . . . . . 1 . 1 Combat 29 | . . . . . . 3 . 13 4 3 6 Robot Hacks Applied 35 | . . . . . . 4 . 15 5 3 8 parse_system 2 | . . . . . . . . 2 . . . map_walls 1 | . . . . . . . . . 1 . . find_terminals 1 | . . . . . . . . . . . 1 spike_heat 4 | . . . . . . . . 3 . . 1 overload_power 3 | . . . . . . 1 . . . . 2 wipe_record 1 | . . . . . . 1 . . . . . overwrite_iff 5 | . . . . . . . . 2 1 2 . streamctrl_high 3 | . . . . . . . . 3 . . . formatsys_low 1 | . . . . . . . . . . . 1 formatsys_high 14 | . . . . . . 2 . 5 3 1 3 Relay Couplers Released 55 | . . . . . . 19 . 16 . 15 5 Machine Destruction 51 | . . . . . . 19 . 16 . 15 1 Programmers 4 | . . . . . . . . . . . 4 Attached 14 | . . . . . . 2 . 6 1 1 4 Fabnet Peak Effective % . | . . . . . . . . . . . . Robots Rewired 9 | . . . . . . . . 6 . 3 . Allies Hacked 2 | . . . . . . . . 1 1 . . Hacks Repelled . | . . . . . . . . . . . . Allies | -11 -10 -10 -9 -9 -8 -8 -7 -7 -7 -7 -6 -------- Run | Yrd Mat Min Mat Sto Mat Gar Fac Gar Fac Gar Fac Total Allies 39 | . . . . . . 2 . 18 9 6 4 Largest Group 12 | . . . . . . 2 2 10 12 6 5 Highest-Rated Group 337 | . . . . . . 30 30 267 337 209 209 Highest-Rated Ally 95 | . . . . . . 15 15 95 95 95 95 Total Orders 1 | . . . . . . . . . 1 . . ROAM 1 | . . . . . . . . . 1 . . Ally Attacks 277 | . . . . . . 1 . 96 99 56 25 Total Damage 7374 | . . . . . . 30 . 2152 2739 1845 608 Kills 63 | . . . . . . 1 . 20 24 15 3 Allies Corrupted 1 | . . . . . . . . 1 . . . Allies Melted . | . . . . . . . . . . . . Intel | -11 -10 -10 -9 -9 -8 -8 -7 -7 -7 -7 -6 ------- Run | Yrd Mat Min Mat Sto Mat Gar Fac Gar Fac Gar Fac Active Infowar (turns) 4182 | . . . 567 1582 1690 341 . . . . 2 Machine Analysis 4180 | . . . 567 1582 1690 341 . . . . . Cloaking 2 | . . . . . . . . . . . 2 Robot Analysis Total . | . . . . . . . . . . . . Derelict Logs Recovered 1 | . . 1 . . . . . . . . . Drone Launches . | . . . . . . . . . . . . Drone Recoveries . | . . . . . . . . . . . . Exploration | -11 -10 -10 -9 -9 -8 -8 -7 -7 -7 -7 -6 ------------- Run | Yrd Mat Min Mat Sto Mat Gar Fac Gar Fac Gar Fac Turns Passed 12253 | 45 580 382 660 1582 1690 1532 58 1705 975 1981 1063 Spaces Moved 6279 | 37 399 259 355 844 849 819 33 873 520 794 497 Core 189 | 11 . . . . . . . . . . 178 Treads 60 | . . . . 3 . 19 . . . 2 36 Legs . | . . . . . . . . . . . . Wheels 6030 | 26 399 259 355 841 849 800 33 873 520 792 283 Hover . | . . . . . . . . . . . . Flight . | . . . . . . . . . . . . Fastest Speed 50 | 50 100 135 135 135 135 135 135 125 150 155 50 Average Speed 150 | 85 114 135 135 140 139 150 135 147 151 211 150 Slowest Speed 1750 | 100 130 135 135 320 155 320 135 165 165 330 1750 Overloaded Moves . | . . . . . . . . . . . . Propulsion Burnouts . | . . . . . . . . . . . . Robots Hopped . | . . . . . . . . . . . . Potential Cave-ins . | . . . . . . . . . . . . Cave-ins Triggered . | . . . . . . . . . . . . Exploration Rate (%) 50 | 4 71 54 25 95 62 93 1 84 18 84 19 Regions Visited 11 Branch Regions 2 Pre-discovered Areas . | . . . . . . . . . . . . Known Exits Taken 5 | . . . 1 1 1 . 1 . 1 . . Unknown Exits Taken 3 | 1 1 1 . . . . . . . . . Scrap Searched 2 | . . 2 . . . . . . . . . Spaces Dug 91 | . . 8 . . 63 7 3 . 4 . 6 Terrain Destroyed 314 | . . 24 . . 64 12 3 3 11 53 144 Melee 4 | . . . . . . . 3 . . . 1 Projectile 22 | . . . . . 1 . . 2 11 . 8 AOE 288 | . . 24 . . 63 12 . 1 . 53 135 Terrain Rammed . | . . . . . . . . . . . . Walls Destroyed . | . . . . . . . . . . . . Machines Disabled . | . . . . . . . . . . . . Actions | -11 -10 -10 -9 -9 -8 -8 -7 -7 -7 -7 -6 --------- Run | Yrd Mat Min Mat Sto Mat Gar Fac Gar Fac Gar Fac Total 8260 | 49 472 284 482 1118 1188 1044 41 1197 688 998 699 Wait 932 | . 19 13 60 153 182 130 4 145 124 67 35 Move 6269 | 36 398 258 354 843 848 818 33 872 519 793 497 Hop . | . . . . . . . . . . . . Pick Up 162 | 8 19 3 15 15 20 15 . 24 8 11 24 Fast Attach 13 | 1 . . 1 1 4 . . 3 . . 3 Attach 79 | 4 3 1 8 4 6 2 . 14 3 9 25 Detach 7 | . . . . . . . . 3 . 2 2 Swap 137 | . 2 5 7 29 27 21 1 16 5 15 9 Drop 91 | . 1 . 9 11 17 12 . 15 7 4 15 Fire 430 | . 30 4 28 62 84 36 . 41 22 51 72 Melee 82 | . . . . . . 7 3 48 . 8 16 Ram 1 | . . . . . . . . . . . 1 Kick . | . . . . . . . . . . . . Crush . | . . . . . . . . . . . . Escape Stasis 54 | . . . . . . 3 . 16 . 35 . Rewire 3 | . . . . . . . . . . 3 . Trap . | . . . . . . . . . . . . Miscellaneous . | . . . . . . . . . . . . Route ------- -11/Scrapyard -10/Materials (discovered 2 exits: *Mat / [*Min]) -10/Mines -9/Materials (discovered 2 exits: *Mat / *Sto) -9/Storage -8/Materials (discovered 3 exits: *Fac x2 / Gar) -8/Garrison (discovered 3 exits: *Fac x3) -7/Factory -7/Garrison (discovered 3 exits: *Fac x3) -7/Factory -7/Garrison (discovered 3 exits: *Fac x3) -6/Factory (discovered 1 exit: [*Fac]) History --------- Turn | Location | Event 17 | -11/Scrapyard | Discovered new exit (range 15) 46 | -11/Scrapyard | Entered Materials 310 | -10/Materials | Build established: Mutant 445 | -10/Materials | Discovered new exit (range 3) 565 | -10/Materials | Discovered new exit (range 12) 626 | -10/Materials | Entered Mines 640 | -10/Mines | Met a Derelict bent on vengeance 660 | -10/Mines | Learned Materials garrison access intel 839 | -10/Mines | Assembled infested the area 844 | -10/Mines | Assisted by a Guerilla fighting off Assembled 850 | -10/Mines | Joined a pair of Derelicts in attacking an 0b10 outpost 914 | -10/Mines | Discovered new exit (range 16) 1008 | -10/Mines | Entered Materials 1008 | -9/Materials | Evolved 2 slots: Utility x2 1338 | -9/Materials | Discovered new exit (range 14) 1434 | -9/Materials | Discovered new exit (range 6) 1611 | -9/Materials | Identified exit to Materials 1665 | -9/Materials | Identified exit to Storage 1668 | -9/Materials | Entered Storage 2411 | -9/Storage | Repaired Arm. Wheel 3199 | -9/Storage | Discovered exit to Materials (range 16) 3250 | -9/Storage | Entered Materials 3250 | -8/Materials | Evolved 2 slots: Utility x2 3251 | -8/Materials | Loaded intel: 1 garrison access location 3882 | -8/Materials | Discovered new exit (range 10) 4295 | -8/Materials | Build established: Scavenger-Mutant 4460 | -8/Materials | Destroyed 8 combat bots 4723 | -8/Materials | Identified exit to Garrison 4730 | -8/Materials | Discovered new exit (range 6) 4940 | -8/Materials | Entered Garrison 4948 | -8/Garrison | Met a derelict Sapper fleeing the area 4951 | -8/Garrison | Phase Generator disabled 5000 | -8/Garrison | Garrison Relay disabled 5267 | -8/Garrison | Garrison Relay disabled 5282 | -8/Garrison | Discovered new exit (range 59) 5282 | -8/Garrison | Discovered new exit (range 92) 5282 | -8/Garrison | Discovered new exit (range 52) 5296 | -8/Garrison | Triggered checkpoint 5389 | -8/Garrison | Triggered checkpoint 5392 | -8/Garrison | Triggered checkpoint 5570 | -8/Garrison | Build established: Hacker-Mutant 5655 | -8/Garrison | Installed Relay Interface Framework 5754 | -8/Garrison | Garrison Relay disabled 5826 | -8/Garrison | Triggered checkpoint 5908 | -8/Garrison | Garrison Relay disabled 5979 | -8/Garrison | Expanded RIF knowledge: Coupler Efficiency 6153 | -8/Garrison | Garrison Relay disabled 6356 | -8/Garrison | Triggered checkpoint 6397 | -8/Garrison | Core integrity fell below 50% 6441 | -8/Garrison | Build established: Bothacker-Mutant 6472 | -8/Garrison | Entered Factory 6472 | -7/Factory | Accompanied by 2 allies 6472 | -7/Factory | Evolved 2 slots: Utility x2 6530 | -7/Factory | Identified exit to Garrison 6530 | -7/Factory | Entered Garrison 6530 | -7/Garrison | Accompanied by 2 allies 6570 | -7/Garrison | Triggered checkpoint 6613 | -7/Garrison | Garrison Relay disabled 6748 | -7/Garrison | Triggered checkpoint 6770 | -7/Garrison | Triggered checkpoint 6770 | -7/Garrison | Triggered checkpoint 6806 | -7/Garrison | Lost 3 allies 6835 | -7/Garrison | Lost 6 parts (1p2n3u) 6909 | -7/Garrison | Heavy support dispatched to Factory 6951 | -7/Garrison | Discovered new exit (range 12) 6990 | -7/Garrison | Triggered checkpoint 7030 | -7/Garrison | Garrison Relay disabled 7174 | -7/Garrison | Discovered new exit (range 12) 7192 | -7/Garrison | Expanded RIF knowledge: Patrol Navigation 7221 | -7/Garrison | P-60 Hacker assimilated allied Commando 4a 7258 | -7/Garrison | Triggered checkpoint 7305 | -7/Garrison | Found embedded Infiltrators 7340 | -7/Garrison | H-XX Assembler disabled 7533 | -7/Garrison | Discovered new exit (range 13) 7682 | -7/Garrison | Triggered checkpoint 7710 | -7/Garrison | Triggered checkpoint 7728 | -7/Garrison | Triggered checkpoint 7769 | -7/Garrison | Discovered new exit (range 72) 7769 | -7/Garrison | Discovered new exit (range 26) 7769 | -7/Garrison | Discovered new exit (range 93) 7880 | -7/Garrison | Garrison Relay disabled 8084 | -7/Garrison | Garrison Relay disabled 8235 | -7/Garrison | Entered Factory 8235 | -7/Factory | Accompanied by 9 allies 8327 | -7/Factory | Fabricated L-41 Fighter (x3) 8635 | -7/Factory | First assault squad dispatched 9207 | -7/Factory | Identified exit to Garrison 9208 | -7/Factory | Garrison activated, responded to threat 9210 | -7/Factory | Entered Garrison 9210 | -7/Garrison | Accompanied by 6 allies 9248 | -7/Garrison | Triggered checkpoint 9313 | -7/Garrison | P-60 Hacker assimilated allied G-47 Trooper 9358 | -7/Garrison | Triggered checkpoint 9390 | -7/Garrison | Triggered checkpoint 9485 | -7/Garrison | Discovered new exit (range 12) 9534 | -7/Garrison | Build established: Mutant 9562 | -7/Garrison | Triggered checkpoint 9607 | -7/Garrison | Garrison Relay disabled 9922 | -7/Garrison | Garrison Relay disabled 10044 | -7/Garrison | Triggered checkpoint 10171 | -7/Garrison | Garrison Relay disabled 10194 | -7/Garrison | Triggered checkpoint 10414 | -7/Garrison | Triggered checkpoint 10569 | -7/Garrison | Expanded RIF knowledge: Program Shield 10610 | -7/Garrison | Discovered new exit (range 3) 10878 | -7/Garrison | Discovered new exit (range 33) 10878 | -7/Garrison | Discovered new exit (range 19) 10878 | -7/Garrison | Discovered new exit (range 66) 10880 | -7/Garrison | Build established: Botlord-Mutant 10938 | -7/Garrison | Learned Factory security intel 10950 | -7/Garrison | Triggered checkpoint 11079 | -7/Garrison | Garrison Relay disabled 11191 | -7/Garrison | Entered Factory 11191 | -6/Factory | Accompanied by 5 allies 11191 | -6/Factory | Evolved 2 slots: Propulsion x2 11487 | -6/Factory | Garrison activated, responded to threat 11526 | -6/Factory | Lost 4 allies 11541 | -6/Factory | First assault squad dispatched 11619 | -6/Factory | Lost 3 allies 11760 | -6/Factory | Lost 8 parts (1p2n3u2w) 11949 | -6/Factory | Build established: Bothacker-Mutant 12132 | -6/Factory | Destroyed 8 combat bots 12139 | -6/Factory | Lost 6 parts (1p3n1u1w) 12157 | -6/Factory | Discovered new exit (range 13) 12254 | -6/Factory | Self-destructed Last Messages --------------- >>find_terminal Pinpointed nearest Terminal: (8,177) (added to intel). 12201_ Jacked O-24 Administrator... >>formatsys_low Rerouting network defenses. Erasing system data. Installing primary routines, ETC: 6. 12211_ Acquired Unknown Device. 12211_ Identified Particle Charger. 12212_ Dropped Particle Charger. 12219_ Dropped Power Sword. 12219_ Dropped Cold Fusion Reactor. 12220_ Acquired Greatsword. 12233_ Connecting with Terminal... 12236_ Acquired Cloaking Device. 12238_ ALERT: Potential suspicious activity detected, Programmers report to Factory Zone 8D. 12242_ Connecting with Terminal... Map ----- +----------------------------------------------------+ | ????????????????????????????? | | ????????????????????????????? | | ????????????????????????????? | | ????????????????????????????? | | ????????????????????????????? | | ??????????????????????????? | | ??????????????????????????? | | ?????????????????????????? | | ??????????????????????????? | | ????????????????????????????? | | ????????????????????????????? | | ????????????????????????????? | | ????????????????????????????? | | ????????????????????????????? | | ????????????????????????????? | | ???????????????????????????#+ | | ???????????????????????????# | | ???????????????????????????# | | ???????????????????????????# | | ???????????????????????????# | | ######?????????????????????# | | #! #?????????????????????# | | # #?????????????????????# | | # #?????????????????????# | | # "" #?????????????????????## | | # ""@#??????????????????????? | | # "T ####### #??????????????? | | # "" + #???????????# | | # "" # #######? ????????????# | | # # #??????? ????????????# | | ######+####???? ????????????# | | ???# #???? ????????????# | | ???# """" #???# ##??????????# | | ???# """" #??? #??????????# | | ???# """" #??? " ??########## | | ???# """" #??? ??# # | | ???# #???# #??# """ # | | ???#####+###??# #??# """ [ # | | ?????# #?## ##?# """ # | | ?????# " ### #?# # | | ?????# "T #?# """ # | | ?????# ### #?# """ # | | ?????# #?## ##?# """ # | | ?????#######??# #??# # | | ?????# ###### ###########+# | | ?????# " | | ###### ######+######## | | # ! ## ##??# #???# | | # ## #???# #???# | | # ## ##??# """ #???# | +----------------------------------------------------+ Best States ------------- Heat Dissipation 68 Energy Generation 18 Energy Capacity 310 Matter Stores 300 Matter Capacity 300 Sight Range 16 Terrain Scan Density 10 EM Shielding 3 Armor Coverage 450 Resistance: KI 30 Resistance: TH 20 Phase Shifting 5 Evasion (%) 50 Targeting Accuracy 6 Core Analysis 6 Recoil Reduction 4 Offensive Hacking 20 Defensive Hacking 30 Relay Coupler Types 4 Relay Coupler Value 96 Authchip Count 3 Item Schematics ----------------- Bore Cannon | -8/Materials | Scanalyzed Robot Schematics ------------------ None Fabricated ------------ L-41 Fighter | x3 | -7/Factory | Preloaded, Authchip Repaired ---------- Arm. Wheel | 21% | -9/Storage Alien Tech Used ----------------- None Achievements -------------- None Challenges ------------ None Game ------ Seed PersonalShrapnelDeflector Manual? 0 Play Time 01:50:26 Cumulative 111.6 hours Start 2025.10.12 @ 11:54:39 End 2025.10.12 @ 14:14:38 Sessions 1 Manual Loads 0 Difficulty Rogue Special Mode None Game No. 176 Rogue 175 Adventurer 1 Explorer 0 Win Type - Total 1 Types 0/0/0/1/0/0/0/0/0/0 Lore% 60 Gallery% 54 Achievement% 49 Wizard Run 0 Options --------- Layout 1 ASCII 0 Keyboard 0 Movement Mouse Keybinds 0 Fullscreen 2 Font 24/Smallcaps Map View 50x35 Zoom Use 0% Tactical HUD 1 Map Filters NONE Filters NONE Steam 1 RUN: 659c0361-7a21-417d-b2ff-32cbfecf5a14